Cogmind - Beta 9.6 @@@ ROGUE MODE // 2020.04.15 @ 11:56:49 Player: alice_fexa Result: Destroyed by G-34 Mercenary with Small Laser Performance ------------- Evolutions (0) 0 Regions Visited (2) 400 Robots Destroyed (10) 50 Value Destroyed (188) 188 Prototype IDs (0) 0 Alien Tech Used (0) 0 Bonus (0) 0 TOTAL SCORE: 638 Bonus ------- None Cogmind --------- Core Integrity 0/250 Matter 297/300 Energy 100/100 System Corruption 3% Temperature Cool (15) Movement Rolling (90) Ox1 Location -10/Mines Parts ------- > --- POWER (1) -------- (None) > --- PROPULSION (2) --- Light Treads Wheel > --- UTILITY (2) ------ Medium Storage Unit Medium Storage Unit > --- WEAPON (2) ------- (None) > --- INVENTORY (12) --- Light Ion Engine Light Ion Engine Light Treads Light Treads Wheel Compact Wheel Small Storage Unit Medium Storage Unit Peak State ------------ > --- POWER ------------ Light Ion Engine > --- PROPULSION ------- Light Treads Wheel > --- UTILITY ---------- Medium Storage Unit Medium Storage Unit > --- WEAPON ----------- Medium Laser Beam Cannon > --- INVENTORY -------- Light Treads Small Storage Unit Medium Storage Unit [Rating: 7] Favorites ----------- Power Ion Engine Engine Ion Engine Propulsion Light Treads Treads Light Treads Wheel Wheel Utility Small Storage Unit Storage Small Storage Unit Weapon Light Assault Rifle Energy Gun Medium Laser Energy Cannon Beam Cannon Ballistic Gun Light Assault Rifle Build | -11 -10 -10 ------- Run | Scr Mat Min Slots Evolved . | . . . Power . | . . . Propulsion . | . . . Utility . | . . . Weapon . | . . . Parts Attached 16 | 7 9 . Power 2 | 1 1 . Engine 2 | 1 1 . Core . | . . . Reactor . | . . . Propulsion 6 | 3 3 . Treads 2 | 1 1 . Leg . | . . . Wheel 4 | 2 2 . Hover . | . . . Flight . | . . . Utility 3 | 1 2 . Device . | . . . Storage 3 | 1 2 . Processor . | . . . Hackware . | . . . Protection . | . . . Artifact . | . . . Weapon 5 | 2 3 . Energy Gun 1 | . 1 . Energy Cannon 2 | . 2 . Ballistic Gun 2 | 2 . . Ballistic Cannon . | . . . Launcher . | . . . Special Weapon . | . . . Impact Weapon . | . . . Slashing Weapon . | . . . Piercing Weapon . | . . . Special Melee Weapon . | . . . Unidentified Prototypes . | . . . Parts Lost 9 | 6 1 2 Power 2 | 1 . 1 Propulsion 3 | 3 . . Utility . | . . . Weapon 4 | 2 1 1 Highest Loss Streak 3 | 3 1 2 Average Slot Usage (%) 82 | . 83 61 Engine 13 | . 14 . Treads 14 | . 14 14 Wheel 11 | . 11 14 Storage 26 | . 25 28 Energy Gun 8 | . 9 . Energy Cannon 7 | . 7 4 Naked Turns . | . . . Heaviest Build 24 | 12 24 16 Greatest Support 20 | 20 20 10 Greatest Overweight (x) 3 | 3 2 1 Average Overweight (x) 1 | . 1 1 Largest Inventory Capacity 12 | 6 12 12 Average Capacity 6 | 5 11 12 Most Carried 9 | 4 9 8 Average Carried 3 | 3 3 8 Final Capacity 12 | 6 12 12 Final Carried 8 | 3 8 8 Class Distribution -------------------- 100% | Mutant Dominant Class ---------------- Mutant | -10/Materials Mutant | -10/Mines Resources | -11 -10 -10 ----------- Run | Scr Mat Min Matter Collected 344 | 245 99 . Remotely . | . . . Salvage Created 334 | . 334 . Parts 15 | . 15 . Haulers Intercepted 1 | . 1 . Recyclers Shooed 2 | . 2 . Parts Field Recycled . | . . . Retrieved Matter . | . . . Parts Self-Destructed . | . . . Prevented . | . . . Kills | -11 -10 -10 ------- Run | Scr Mat Min Combat Hostiles Destroyed 4 | . 4 . Cannons 3 | . 3 . Classes Destroyed 6 | . 6 . Worker 1 | . 1 . Tunneler 2 | . 2 . Hauler 1 | . 1 . Recycler 1 | . 1 . Watcher 1 | . 1 . Grunt 4 | . 4 . Best Kill Streak 2 | . 2 . Combat Bots Only 2 | . 2 . Max Kills in Single Turn 1 | . 1 . Gunslinging . | . . . Exploded . | . . . Melee . | . . . Uniques/NPCs Destroyed . | . . . Combat | -11 -10 -10 -------- Run | Scr Mat Min Damage Taken 1208 | 689 188 331 Core 253 | 118 40 95 Absorbed by Shields . | . . . Core Remaining (%) 52 | 52 . . Volleys Fired 47 | . 40 7 Largest 2 | . 2 1 Hottest 110 | . 110 60 Shots Fired 57 | . 50 7 Gun 30 | . 30 . Cannon 27 | . 20 7 Launcher . | . . . Special . | . . . Kinetic . | . . . Thermal 57 | . 50 7 Explosive . | . . . Electromagnetic . | . . . Robot Hit Streak 12 | . 12 3 Robot Miss Streak 2 | . 2 1 Penetration Max . | . . . Secondary Targets . | . . . Shots Hit Robots 44 | . 39 5 Core Hits 14 | . 13 1 Critical Hits . | . . . Critical Kills . | . . . Critical Parts Destroyed . | . . . Melee Attacks . | . . . Impact . | . . . Slashing . | . . . Piercing . | . . . Sneak Attacks . | . . . Combat Hostiles . | . . . Follow-up Attacks . | . . . Damage Inflicted 680 | . 593 87 Guns 312 | . 312 . Cannons 368 | . 281 87 Explosions . | . . . Melee . | . . . Ramming . | . . . Kinetic . | . . . Thermal 680 | . 593 87 Explosive . | . . . Electromagnetic . | . . . Impact . | . . . Slashing . | . . . Piercing . | . . . Highest Corruption 3 | 3 3 3 Average Corruption 3 | 3 3 3 Corruption Purged . | . . . Effects 12 | 4 7 1 Message Errors 5 | 2 3 . Matter Fused 4 | 2 1 1 Heat Flow Errors 1 | . 1 . Energy Discharges 2 | . 2 . Overload Shots . | . . . Overflow Damage 8 | . 8 . Projectiles 8 | . 8 . Explosions . | . . . Melee . | . . . Knockbacks . | . . . Impact . | . . . Kinetic . | . . . Secondary . | . . . Self-Inflicted Damage . | . . . Shots . | . . . Rammed . | . . . Targets Rammed . | . . . Kicked . | . . . Crushed . | . . . Highest Temperature 414 | . 414 161 Average Temperature 125 | . 132 88 Received Heat Transfer 448 | 160 108 180 Effects 4 | . 4 . Shutdowns 1 | . 1 . Interference 2 | . 2 . Short Circuit 1 | . 1 . Siege Activations . | . . . Robots Corrupted . | . . . Combat Hostiles . | . . . Parts Fried . | . . . Impact Corruptions . | . . . Robots Melted 1 | . 1 . Combat Hostiles 1 | . 1 . Parts Melted 3 | . 3 . Heat Transferred 1702 | . 1517 185 Parts Sabotaged . | . . . Parts Stolen . | . . . Parts Stripped . | . . . Power Chain Reactions . | . . . Missiles Intercepted . | . . . Alert | -11 -10 -10 ------- Run | Scr Mat Min Peak Influence 144 | 15 144 . Average Influence 5 | . 62 . Maximum Alert Level . | . . . Low Security (%) 100 | 100 100 100 Level 1 . | . . . Level 2 . | . . . Level 3 . | . . . Level 4 . | . . . Level 5 . | . . . High Security . | . . . Max Security . | . . . Squads Dispatched 1 | . 1 . Investigation 1 | . 1 . Extermination . | . . . Reinforcement . | . . . Assault . | . . . Garrison . | . . . Intercept . | . . . Construction Impeded . | . . . Haulers Reinforced . | . . . Stealth | -11 -10 -10 --------- Run | Scr Mat Min Distress Signals 1 | . 1 . Communications Jammed . | . . . Distress Signals . | . . . Times Spotted 35 | 22 11 2 Peak Tracking Total 22 | 22 6 2 Tactical Retreats 1 | . 1 . Traps | -11 -10 -10 ------- Run | Scr Mat Min Traps Triggered 1 | . 1 . Indirectly . | . . . Trap Hack Attempts . | . . . Triggered . | . . . Disarmed . | . . . Reprogrammed . | . . . Reused . | . . . Traps Extracted . | . . . Installed . | . . . Triggered . | . . . Machines | -11 -10 -10 ---------- Run | Scr Mat Min Machines Disabled . | . . . Max in Single Turn . | . . . Machines Sabotaged . | . . . Garrisons Compromised . | . . . Overloaded Fab Kills . | . . . Fab Network Shutdowns . | . . . Hacking | -11 -10 -10 --------- Run | Scr Mat Min Machines Accessed . | . . . Terminals . | . . . Fabricators . | . . . Repair Stations . | . . . Recycling Units . | . . . Scanalyzers . | . . . Garrison Access . | . . . Total Hacks . | . . . Successful . | . . . Failed . | . . . Catastrophic . | . . . Database Lockouts . | . . . Manual . | . . . Terminals . | . . . Fabricators . | . . . Repair Stations . | . . . Recycling Units . | . . . Scanalyzers . | . . . Garrison Access . | . . . Terminal Hacks . | . . . Fabricator Hacks . | . . . Repair Station Hacks . | . . . Recycling Unit Hacks . | . . . Scanalyzer . | . . . Garrison Access Hacks . | . . . Unauthorized Hacks . | . . . Terminals . | . . . Fabricators . | . . . Repair Stations . | . . . Recycling Units . | . . . Scanalyzers . | . . . Garrison Access . | . . . Data Cores Recovered . | . . . Used . | . . . Hacking Detections . | . . . Full Trace Events . | . . . Feedback Events . | . . . Feedback Blocked . | . . . Robot Schematics Acquired . | . . . Robots Built . | . . . Matter . | . . . Time . | . . . Total Robot Build Rating . | . . . Part Schematics Acquired . | . . . Parts Built . | . . . Matter . | . . . Time . | . . . Total Part Build Rating . | . . . Parts Repaired . | . . . Time . | . . . Parts Recycled . | . . . Recycled Matter . | . . . Retrieved Matter . | . . . Retrieved Components . | . . . Parts Scanalyzed . | . . . Part Schematics Acquired . | . . . Parts Damaged . | . . . Bothacking | -11 -10 -10 ------------ Run | Scr Mat Min Used RIF Installer . | . . . Robots Hacked . | . . . Non-combat . | . . . Combat . | . . . Robot Hacks Applied . | . . . Relay Couplers Released . | . . . Robots Rewired . | . . . Allies Hacked . | . . . Hacks Repelled . | . . . Allies | -11 -10 -10 -------- Run | Scr Mat Min Total Allies . | . . . Largest Group . | . . . Highest-Rated Group . | . . . Highest-Rated Ally . | . . . Total Orders . | . . . Ally Attacks . | . . . Total Damage . | . . . Kills . | . . . Allies Corrupted . | . . . Allies Melted . | . . . Intel | -11 -10 -10 ------- Run | Scr Mat Min Robot Analysis Total . | . . . Derelict Logs Recovered . | . . . Drone Launches . | . . . Drone Recoveries . | . . . Exploration | -11 -10 -10 ------------- Run | Scr Mat Min Turns Passed 4495 | 4049 414 32 Spaces Moved 1396 | 1149 229 18 Core 171 | 171 . . Treads 59 | 15 44 . Legs . | . . . Wheels 1166 | 963 185 18 Hover . | . . . Flight . | . . . Fastest Speed 50 | 50 100 90 Average Speed 94 | 91 111 90 Slowest Speed 200 | 200 180 90 Overloaded Moves . | . . . Propulsion Burnouts . | . . . Robots Hopped . | . . . Cave-ins Triggered . | . . . Exploration Rate (%) 50 | 109 37 6 Regions Visited 2 Branch Regions 1 Pre-discovered Areas . | . . . Known Exits Taken . | . . . Unknown Exits Taken 2 | 1 1 . Scrap Searched . | . . . Spaces Dug . | . . . Terrain Destroyed . | . . . Melee . | . . . Projectile . | . . . AOE . | . . . Actions | -11 -10 -10 --------- Run | Scr Mat Min Total 4502 | 4142 334 26 Wait 3030 | 2982 47 1 Move 1394 | 1148 228 18 Hop . | . . . Pick Up 13 | 5 8 . Fast Attach 8 | 5 3 . Attach 5 | 2 3 . Detach . | . . . Swap 3 | . 3 . Drop 2 | . 2 . Fire 47 | . 40 7 Melee . | . . . Ram . | . . . Kick . | . . . Crush . | . . . Escape Stasis . | . . . Rewire . | . . . Trap . | . . . Miscellaneous . | . . . Route ------- -11/Scrapyard -10/Materials -10/Mines History --------- Turn | Location | Event 12 | -11/Scrapyard | Discovered new exit (range 15) 3759 | -11/Scrapyard | Assembled infested the area 3820 | -11/Scrapyard | Lost 3 parts (1n2w) 3914 | -11/Scrapyard | Lost 3 parts (1p2n) 4050 | -11/Scrapyard | Entered Materials 4073 | -10/Materials | Build established: Mutant 4285 | -10/Materials | Core integrity fell below 50% 4440 | -10/Materials | Discovered new exit (range 6) 4464 | -10/Materials | Entered Mines 4491 | -10/Mines | Core integrity fell below 20% 4496 | -10/Mines | Destroyed by G-34 Mercenary with Small Laser Last Messages --------------- 04391_ K-01 Serf collects debris. 04398_ Acquired Lgt. Ion Engine. 04399_ K-01 Serf collects debris. 04401_ System corrupted: Energy discharge (-31). 04402_ K-01 Serf collects debris. 04418_ Acquired Sml. Storage Unit. 04419_ Dropped Sml. Storage Unit. 04425_ Triggered Alarm Trap. 04425_ An alarm sounds. 04425_ ALERT: Alarm triggered, dispatching investigation squad. 04427_ R-06 Scavenger collects Hover Unit. 04431_ K-01 Serf collects debris. 04440_ EXIT=FOUND 04441_ U-05 Engineer lays Concrete. LOCATION=UNKNOWN GOAL=ESCAPE 04468_ Lgt. Ion Engine destroyed. 04469_ System corrupted: Matter fused (-8). 04478_ Beam Cannon destroyed. [Achievement: Superachiever] Map ----- +----------------------------------------------------+ | | | | | | | ???????????????????????????????????????? | | ???????????????????????????????????????? | | ???????????????????????????????????????? | | ???????????????????????????????????????? | | ???????????????????????????????????????? | | ???????????????????????????????????????? | | ???????????????????????????????????????? | | ???????????????????????????????????????? | | ???????????????????????????????????????? | | ???????????????????????????????????????? | | ???????????????????????????????????????? | | ???????????????????????????????????????? | | ???????????????????????????????????????? | | ???????????????????????????????????????? | | ???????????????????????????????????????? | | ???????????????????????????????????????? | | ??????#########????????????????????????? | | ???#### ##???????????????????????? | | ??## gg #???????????????????????? | | ??# #???????????????????????? | | ??# ##???????????????????????? | | ??# ###### ????????? | | ??# ## @ ????????? | | ??# #### ####### #??????????? | | ??# ##??####?????????????????????????? | | ?# #????????????????????????????????? | | ?# #????????????????????????????????? | | ?## #???????????????????????????????? | | ??## #???????????????????????????????? | | ???## ##???????????????????????????????? | | ????###????????????????????????????????? | | ???????????????????????????????????????? | | ???????????????????????????????????????? | | ???????????????????????????????????????? | | ???????????????????????????????????????? | | ???????????????????????????????????????? | | ???????????????????????????????????????? | | ???????????????????????????????????????? | | ???????????????????????????????????????? | | ???????????????????????????????????????? | | ???????????????????????????????????????? | | ???????????????????????????????????????? | | ???????????????????????????????????????? | | ???????????????????????????????????????? | | ???????????????????????????????????????? | | ???????????????????????????????????????? | | ???????????????????????????????????????? | +----------------------------------------------------+ Best States ------------- Heat Dissipation 25 Energy Generation 10 Energy Capacity 250 Matter Stores 300 Matter Capacity 300 Sight Range 16 Terrain Scan Density 10 Evasion (%) 44 Recoil Reduction 1 Item Schematics ----------------- None Robot Schematics ------------------ None Fabricated ------------ Nothing Alien Tech Used ----------------- None Achievements -------------- Curiosity Killed The Cat Superachiever Challenges ------------ None Game ------ Seed ForceInertialMeganuke Manual? 0 Play Time 00:10:53 Cumulative 748.0 hours Start 2020.04.15 @ 11:40:35 End 2020.04.15 @ 11:56:49 Sessions 1 Manual Loads 0 Difficulty Rogue Special Mode None Game No. 664 Rogue 624 Adventurer 40 Explorer 0 Win Type - Total 67 Types 48/2/14/2/0/0/1 Lore% 92 Gallery% 94 Achievement% 75 Wizard Run 0 Options --------- ASCII 0 Keyboard 0 Movement Numpad Keybinds 0 Fullscreen 0 Font 16/Terminus Map View 76x50 Tactical HUD 1 Map Filters NONE Filters NONE Steam 1 RUN: a7a6b428-cab2-4017-840d-05f5f532f04b